fUSD/lending_fUSD_20250107
["ID","MTS","AMOUNT","RATE_DAILY","PERIOD"]
[347961635,1736249444838,-500.0,9.899e-05,2]
[347961636,1736249444847,-500.0,9.899e-05,2]
[347961637,1736249444857,-500.0,9.899e-05,2]
[347961638,1736249444866,-500.0,9.899e-05,2]
[347961639,1736249444876,-500.0,9.899e-05,2]
[347961640,1736249444886,-500.0,9.899e-05,2]
[347961641,1736249444895,-500.0,9.899e-05,2]
[347961642,1736249444904,-500.0,9.899e-05,2]
[347961643,1736249444914,-500.0,9.899e-05,2]
[347961644,1736249444923,-500.0,9.899e-05,2]
[347961645,1736249444933,-500.0,9.899e-05,2]
[347961646,1736249444943,-500.0,9.899e-05,2]
[347961647,1736249444953,-500.0,9.899e-05,2]
[347961648,1736249444962,-500.0,9.899e-05,2]
[347961649,1736249444972,-500.0,9.899e-05,2]
[347961650,1736249444982,-500.0,9.899e-05,2]
[347961651,1736249444992,-500.0,9.899e-05,2]
[347961652,1736249445001,-500.0,9.899e-05,2]
[347961653,1736249445011,-500.0,9.899e-05,2]
[347961654,1736249445019,-500.0,9.899e-05,2]
[347961655,1736249445029,-500.0,9.899e-05,2]
[347961656,1736249445039,-500.0,9.899e-05,2]
[347961657,1736249445048,-500.0,9.899e-05,2]
[347961658,1736249445058,-500.0,9.899e-05,2]
[347961659,1736249445067,-500.0,9.899e-05,2]
[347961660,1736249445077,-445.16961526,9.899e-05,2]
[347961661,1736249445086,-825.43,9.899e-05,2]
[347961662,1736249445096,-500.0,9.899e-05,2]
[347961663,1736249445105,-500.0,9.899e-05,2]
[347961664,1736249445115,-500.0,9.899e-05,2]
[347961665,1736249445124,-500.0,9.899e-05,2]
[347961666,1736249445134,-500.0,9.899e-05,2]
[347961667,1736249445145,-500.0,9.899e-05,2]
[347961668,1736249445155,-500.0,9.899e-05,2]
[347961669,1736249445164,-500.0,9.899e-05,2]
[347961670,1736249445174,-500.0,9.899e-05,2]
[347961671,1736249445183,-500.0,9.899e-05,2]
[347961672,1736249445192,-376.86411924,9.899e-05,2]
[347961673,1736249445202,-500.0,9.899e-05,2]
[347961674,1736249445211,-500.0,9.899e-05,2]
[347961675,1736249445220,-500.0,9.899e-05,2]
[347961676,1736249445229,-500.0,9.899e-05,2]
[347961677,1736249445238,-500.0,9.899e-05,2]
[347961678,1736249445247,-500.0,9.899e-05,2]
[347961679,1736249445256,-500.0,9.899e-05,2]
[347961680,1736249445265,-500.0,9.899e-05,2]
[347961681,1736249445273,-500.0,9.899e-05,2]
[347961682,1736249445283,-500.0,9.899e-05,2]
[347961683,1736249445292,-500.0,9.899e-05,2]
[347961684,1736249445302,-500.0,9.899e-05,2]
[347961685,1736249445311,-500.0,9.899e-05,2]
[347961686,1736249445320,-1593.07,9.899e-05,2]
[347961687,1736249445328,-500.0,9.899e-05,2]
[347961688,1736249445338,-1593.07,9.899e-05,2]
[347961689,1736249445347,-1593.07,9.899e-05,2]
[347961690,1736249445355,-1593.07,9.899e-05,2]
[347961691,1736249445364,-1593.07,9.899e-05,2]
[347961692,1736249445373,-500.0,9.899e-05,2]
[347961693,1736249445382,-1593.07,9.899e-05,2]
[347961694,1736249445391,-1593.07,9.899e-05,2]
[347961695,1736249445399,-1593.07,9.899e-05,2]
[347961696,1736249445408,-1593.07,9.899e-05,2]
[347961697,1736249445417,-1593.07,9.899e-05,2]
[347961698,1736249445426,-1593.07,9.899e-05,2]
[347961699,1736249445435,-1593.07,9.899e-05,2]
[347961700,1736249445444,-1593.07,9.899e-05,2]
[347961701,1736249445454,-1593.07,9.899e-05,2]
[347961702,1736249445465,-1593.07,9.899e-05,2]
[347961703,1736249445475,-1593.07,9.899e-05,2]
[347961704,1736249445485,-1593.07,9.899e-05,2]
[347961705,1736249445494,-1593.07,9.899e-05,2]
[347961706,1736249445504,-1593.07,9.899e-05,2]
[347961707,1736249445513,-1593.07,9.899e-05,2]
[347961708,1736249445522,-1593.07,9.899e-05,2]
[347961709,1736249445532,-500.0,9.899e-05,2]
[347961710,1736249445541,-1593.07,9.899e-05,2]
[347961711,1736249445551,-500.0,9.899e-05,2]
[347961712,1736249445560,-1593.1121969,9.899e-05,2]
[347961713,1736249445570,-500.0,9.899e-05,2]
[347961714,1736249445579,-500.0,9.899e-05,2]
[347961715,1736249445588,-500.0,9.899e-05,2]
[347961716,1736249445597,-500.0,9.899e-05,2]
[347961717,1736249445606,-500.0,9.899e-05,2]
[347961718,1736249445615,-500.0,9.899e-05,2]
[347961720,1736249445771,-500.0,9.899e-05,2]
[347961721,1736249445781,-500.0,9.899e-05,2]
[347961722,1736249445790,-500.0,9.899e-05,2]
[347961723,1736249445799,-500.0,9.899e-05,2]
[347961724,1736249445808,-598.91,9.899e-05,2]
[347961725,1736249445818,-500.0,9.899e-05,2]
[347961726,1736249445827,-500.0,9.899e-05,2]
[347961727,1736249445836,-500.0,9.899e-05,2]
[347961728,1736249445846,-500.0,9.899e-05,2]
[347961729,1736249445855,-500.0,9.899e-05,2]
[347961730,1736249445864,-500.0,9.899e-05,2]
[347961731,1736249445873,-500.0,9.899e-05,2]
[347961732,1736249445883,-500.0,9.899e-05,2]
[347961733,1736249445892,-500.0,9.899e-05,2]
[347961734,1736249445902,-500.0,9.899e-05,2]
[347961735,1736249445911,-500.0,9.899e-05,2]
[347961736,1736249445921,-500.0,9.899e-05,2]
[347961737,1736249445930,-500.0,9.899e-05,2]
[347961738,1736249445939,-575.92,9.899e-05,2]
[347961739,1736249445949,-500.0,9.899e-05,2]
[347961740,1736249445959,-500.0,9.899e-05,2]
[347961741,1736249445968,-500.0,9.899e-05,2]
[347961742,1736249445978,-500.0,9.899e-05,2]
[347961743,1736249445987,-500.0,9.899e-05,2]
[347961744,1736249445997,-500.0,9.899e-05,2]
[347961745,1736249446006,-500.0,9.899e-05,2]
[347961746,1736249446015,-500.0,9.899e-05,2]
[347961747,1736249446024,-500.0,9.899e-05,2]
[347961748,1736249446033,-500.0,9.899e-05,2]
[347961749,1736249446042,-500.0,9.899e-05,2]
[347961750,1736249446052,-500.0,9.899e-05,2]
[347961751,1736249446061,-500.0,9.899e-05,2]
[347961752,1736249446071,-500.0,9.899e-05,2]
[347961753,1736249446080,-1246.76,9.899e-05,2]
[347961754,1736249446089,-500.0,9.899e-05,2]
[347961755,1736249446099,-500.0,9.899e-05,2]
[347961756,1736249446108,-500.0,9.899e-05,2]
[347961757,1736249446117,-500.0,9.899e-05,2]
[347961758,1736249446127,-500.0,9.899e-05,2]
[347961759,1736249446136,-500.0,9.899e-05,2]
[347961760,1736249446146,-500.0,9.899e-05,2]
[347961761,1736249446156,-500.0,9.899e-05,2]
[347961762,1736249446165,-500.0,9.899e-05,2]
[347961763,1736249446175,-500.0,9.899e-05,2]
[347961764,1736249446184,-500.0,9.899e-05,2]
[347961765,1736249446194,-500.0,9.899e-05,2]
[347961766,1736249446208,-500.0,9.899e-05,2]
[347961767,1736249446217,-500.0,9.899e-05,2]
[347961768,1736249446227,-500.0,9.899e-05,2]
[347961769,1736249446236,-500.0,9.899e-05,2]
[347961770,1736249446246,-500.0,9.899e-05,2]
[347961771,1736249446255,-500.0,9.899e-05,2]
[347961772,1736249446265,-500.0,9.899e-05,2]
[347961773,1736249446274,-500.0,9.899e-05,2]
[347961774,1736249446283,-500.0,9.899e-05,2]
[347961775,1736249446292,-500.0,9.899e-05,2]
[347961776,1736249446301,-500.0,9.899e-05,2]
[347961777,1736249446311,-500.0,9.899e-05,2]
[347961778,1736249446320,-500.0,9.899e-05,2]
[347961779,1736249446330,-500.0,9.899e-05,2]
[347961780,1736249446339,-500.0,9.899e-05,2]
[347961781,1736249446348,-500.0,9.899e-05,2]
[347961782,1736249446357,-500.0,9.899e-05,2]
[347961783,1736249446366,-500.0,9.899e-05,2]
[347961784,1736249446376,-500.0,9.899e-05,2]
[347961786,1736249446385,-974.6,9.899e-05,2]
[347961787,1736249446394,-500.0,9.899e-05,2]
[347961789,1736249446403,-500.0,9.899e-05,2]
[347961791,1736249446412,-500.0,9.899e-05,2]
[347961792,1736249446422,-500.0,9.899e-05,2]
[347961793,1736249446431,-500.0,9.899e-05,2]
[347961794,1736249446441,-500.0,9.899e-05,2]
[347961795,1736249446450,-500.0,9.899e-05,2]
[347961796,1736249446462,-500.0,9.899e-05,2]
[347961797,1736249446471,-500.0,9.899e-05,2]
[347961798,1736249446481,-500.0,9.899e-05,2]
[347961799,1736249446491,-500.0,9.899e-05,2]
[347961800,1736249446501,-500.0,9.899e-05,2]
[347961801,1736249446510,-500.0,9.899e-05,2]
[347961802,1736249446520,-500.0,9.899e-05,2]
[347961803,1736249446530,-500.0,9.899e-05,2]
[347961804,1736249446540,-987.18,9.899e-05,2]
[347961805,1736249446550,-500.0,9.899e-05,2]
[347961806,1736249446560,-500.0,9.899e-05,2]
[347961807,1736249446570,-500.0,9.899e-05,2]
[347961808,1736249446580,-500.0,9.899e-05,2]
[347961809,1736249446590,-500.0,9.899e-05,2]
[347961810,1736249446600,-500.0,9.899e-05,2]
[347961812,1736249446609,-500.0,9.899e-05,2]
[347961813,1736249446619,-500.0,9.899e-05,2]
[347961814,1736249446627,-500.0,9.899e-05,2]
[347961815,1736249446637,-500.0,9.899e-05,2]
[347961816,1736249446646,-502.81597827,9.899e-05,2]
[347961817,1736249446655,-500.0,9.899e-05,2]
[347961818,1736249446665,-500.0,9.899e-05,2]
[347961819,1736249446674,-500.0,9.899e-05,2]
[347961820,1736249446684,-1455.39,9.899e-05,2]
[347961821,1736249446693,-280.5757634,9.899e-05,2]
[347961822,1736249446702,-500.0,9.899e-05,2]
[347961823,1736249446712,-500.0,9.899e-05,2]
[347961824,1736249446722,-500.0,9.899e-05,2]
[347961825,1736249446731,-500.0,9.899e-05,2]
[347961826,1736249446741,-500.0,9.899e-05,2]
[347961827,1736249446751,-500.0,9.899e-05,2]
[347961828,1736249446760,-500.0,9.899e-05,2]
[347961829,1736249446770,-500.0,9.899e-05,2]
[347961830,1736249446784,-500.0,9.899e-05,2]
[347961831,1736249446796,-500.0,9.899e-05,2]
[347961832,1736249446805,-500.0,9.899e-05,2]
[347961833,1736249446815,-500.0,9.899e-05,2]
[347961834,1736249446824,-500.0,9.899e-05,2]
[347961835,1736249446833,-500.0,9.899e-05,2]
[347961836,1736249446843,-808.9,9.899e-05,2]
[347961837,1736249446852,-500.0,9.899e-05,2]
[347961838,1736249446862,-500.0,9.899e-05,2]
[347961839,1736249446872,-500.0,9.899e-05,2]
[347961840,1736249446881,-500.0,9.899e-05,2]
[347961841,1736249446891,-500.0,9.899e-05,2]
[347961842,1736249446900,-500.0,9.899e-05,2]
[347961843,1736249446909,-500.0,9.899e-05,2]
[347961844,1736249446919,-500.0,9.899e-05,2]
[347961845,1736249446929,-500.0,9.899e-05,2]
[347961846,1736249446939,-1497.83,9.899e-05,2]
[347961847,1736249446948,-500.0,9.899e-05,2]
[347961848,1736249446959,-500.0,9.899e-05,2]
[347961849,1736249446968,-500.0,9.899e-05,2]
[347961850,1736249446978,-500.0,9.899e-05,2]
[347961851,1736249446988,-500.0,9.899e-05,2]
[347961852,1736249446997,-500.0,9.899e-05,2]
[347961853,1736249447007,-500.0,9.899e-05,2]
[347961854,1736249447016,-500.0,9.899e-05,2]
[347961855,1736249447026,-500.0,9.899e-05,2]
[347961856,1736249447035,-500.0,9.899e-05,2]
[347961857,1736249447045,-500.0,9.899e-05,2]
[347961858,1736249447054,-500.0,9.899e-05,2]
[347961859,1736249447063,-2335.72,9.899e-05,2]
[347961860,1736249447075,-500.0,9.899e-05,2]
[347961861,1736249447084,-77440.63109862,9.899e-05,2]
[347961862,1736249447094,-500.0,9.899e-05,2]
[347961863,1736249447104,-500.0,9.899e-05,2]
[347961864,1736249447113,-500.0,9.899e-05,2]
[347961865,1736249447123,-500.0,9.899e-05,2]
[347961866,1736249447133,-500.0,9.899e-05,2]
[347961867,1736249447142,-500.0,9.899e-05,2]
[347961868,1736249447152,-500.0,9.899e-05,2]
[347961869,1736249447161,-500.0,9.899e-05,2]
[347961870,1736249447171,-500.0,9.899e-05,2]
[347961871,1736249447181,-500.0,9.899e-05,2]
[347961872,1736249447190,-500.0,9.899e-05,2]
[347961873,1736249447203,-500.0,9.899e-05,2]
[347961874,1736249447212,-500.0,9.899e-05,2]
[347961875,1736249447222,-500.0,9.899e-05,2]
[347961876,1736249447231,-500.0,9.899e-05,2]
[347961877,1736249447240,-501.74482879,9.899e-05,2]
[347961878,1736249447251,-285.56665977,9.899e-05,2]
[347961879,1736249447260,-500.0,9.899e-05,2]
[347961880,1736249447269,-500.0,9.899e-05,2]
[347961881,1736249447279,-500.000001,9.899e-05,2]
[347961882,1736249447288,-500.0,9.899e-05,2]
[347961883,1736249447298,-500.0,9.899e-05,2]
[347961884,1736249447308,-500.0,9.899e-05,2]
[347961885,1736249447317,-500.0,9.899e-05,2]
[347961886,1736249447326,-500.0,9.899e-05,2]
[347961887,1736249447335,-500.0,9.899e-05,2]
[347961888,1736249447344,-500.0,9.899e-05,2]
[347961889,1736249447354,-500.0,9.899e-05,2]
[347961890,1736249447363,-500.0,9.899e-05,2]
[347961891,1736249447372,-500.0,9.899e-05,2]
[347961892,1736249447382,-500.0,9.899e-05,2]
[347961893,1736249447391,-500.0,9.899e-05,2]
[347961894,1736249447401,-500.0,9.899e-05,2]
[347961895,1736249447410,-500.0,9.899e-05,2]
[347961896,1736249447419,-500.0,9.899e-05,2]
[347961897,1736249447428,-500.0,9.899e-05,2]
[347961898,1736249447437,-500.0,9.899e-05,2]
[347961899,1736249447447,-500.0,9.899e-05,2]
[347961900,1736249447456,-500.0,9.899e-05,2]
[347961901,1736249447465,-500.0,9.899e-05,2]
[347961902,1736249447475,-500.0,9.899e-05,2]
[347961903,1736249447484,-500.0,9.899e-05,2]
[347961904,1736249447494,-500.0,9.899e-05,2]
[347961905,1736249447503,-500.0,9.899e-05,2]
[347961906,1736249447513,-500.0,9.899e-05,2]
[347961907,1736249447522,-500.0,9.899e-05,2]
[347961908,1736249447533,-500.0,9.899e-05,2]
[347961909,1736249447542,-500.0,9.899e-05,2]
[347961910,1736249447551,-500.0,9.899e-05,2]
[347961911,1736249447561,-500.0,9.899e-05,2]
[347961912,1736249447571,-500.0,9.899e-05,2]
[347961913,1736249447580,-500.0,9.899e-05,2]
[347961914,1736249447590,-175.66420089,9.899e-05,2]
[347961915,1736249447599,-16578.9249517,9.899e-05,2]
[347961916,1736249447609,-569.0,9.9e-05,2]
[347961917,1736249447618,-70135.05255972,9.9e-05,2]
[347961918,1736249447668,-1092905.12849901,9.9e-05,2]
[347961919,1736249447680,-1429.7283,9.9e-05,2]
[347961920,1736249448058,-761.20187734,9.7e-05,2]
[347961921,1736249448124,-3190.12601882,9.7e-05,2]
[347961922,1736249448135,-1223.159815,9.7e-05,2]
[347961923,1736249448211,-1024.9677062,9.7e-05,2]
[347961924,1736249448233,-4875.80868171,9.7e-05,2]
[347961925,1736249448245,-5963.6892472,9.7e-05,2]
[347961926,1736249448255,-500.0,9.795e-05,2]
[347961927,1736249448265,-500.0,9.795e-05,2]
[347961928,1736249448275,-500.0,9.796e-05,2]
[347961929,1736249448285,-179713.89924226,9.9e-05,2]
[347961930,1736249448346,-801.55370379,9.9e-05,2]
[347961931,1736249448359,-177960.00003,9.9e-05,2]
[347961932,1736249448370,-7685.23853375,9.9e-05,2]
[347961933,1736249448381,-768.89942114,9.9e-05,2]
[347961934,1736249448959,-171.51207042,9.795e-05,2]
[347961935,1736249448969,-500.0,9.795e-05,2]
[347961936,1736249448978,-500.0,9.795e-05,2]
[347961937,1736249448989,-98.60109813,9.795e-05,2]
[347961938,1736249449000,-355.64993399,9.795e-05,2]
[347961939,1736249449020,-45.74896788,9.795e-05,2]
[347961940,1736249449030,-239.81769189,9.795e-05,2]
[347961941,1736249449042,-260.18230811,9.795e-05,2]
[347961942,1736249449051,-346.1800365,9.796e-05,2]
[347961943,1736249449063,-153.8199635,9.796e-05,2]
[347961944,1736249449076,-500.0,9.796e-05,2]
[347961945,1736249449087,-500.0,9.899e-05,2]
[347961946,1736249449097,-227.05140426,9.899e-05,2]
[347961947,1736249449107,-117702.05565116,9.9e-05,2]
[347961948,1736249449122,-2174.3,9.9e-05,2]
[347961949,1736249449134,-636.24,9.9e-05,2]
[347961950,1736249449146,-874.63,9.9e-05,2]
[347961951,1736249449158,-619.01442281,9.9e-05,2]
[347961952,1736249449170,-1613.94584762,9.9e-05,2]
[347961953,1736249449193,-3025.96956689,9.9e-05,2]
[347961954,1736249449207,-4423.04168,9.9e-05,2]
[347961955,1736249449219,-17766.9816,9.9e-05,2]
[347961956,1736249449232,-64263.23025,9.9e-05,2]
[347961957,1736249449292,-500.0,9.899e-05,2]
[347961958,1736249449303,-16893.24304955,9.9e-05,2]
[347961963,1736249857033,292.99270296,7.089e-05,2]
[347961967,1736250402367,-459.94675725,8e-05,2]
[347961977,1736250632176,-65.05324275,8e-05,2]
[347961978,1736250632186,-374.13139,8.178e-05,2]
[347961979,1736250632195,-400.81536725,8.219e-05,2]
[347961980,1736250632231,-1078.26458331,8.219e-05,2]
[347961981,1736250632241,-549.76340661,8.219e-05,2]
[347961982,1736250632251,-87630.39,8.219e-05,2]
[347961983,1736250632260,-737.52,8.219e-05,2]
[347961984,1736250632270,-8412.37,8.297e-05,2]
[347961985,1736250632279,-150.0,8.356e-05,2]
[347961986,1736250632289,-250.0,8.377e-05,2]
[347961987,1736250632299,-1123.69,8.391e-05,2]
[347961988,1736250632308,-992.37,8.554e-05,2]
[347961989,1736250632317,-150.0,8.647e-05,2]
[347961990,1736250632327,-171.61,8.655e-05,2]
[347961991,1736250632337,-250.0,8.661e-05,2]
[347961992,1736250632346,-12228.70348344,8.743e-05,2]
[347961993,1736250632355,-3560.39,8.745e-05,2]
[347961994,1736250632365,-800.0,8.768e-05,2]
[347961995,1736250632374,-156.92,8.864e-05,2]
[347961996,1736250632384,-177.16,8.89e-05,2]
[347961997,1736250632393,-1000.0,8.933e-05,2]
[347961998,1736250632402,-250.0,8.94e-05,2]
[347961999,1736250632412,-162.89,8.943e-05,2]
[347962000,1736250632421,-23900.0,8.975e-05,2]
[347962001,1736250632431,-700.0,9e-05,2]
[347962002,1736250632440,-150.0,9e-05,2]
[347962003,1736250632450,-150.0,9e-05,2]
[347962004,1736250632459,-267.03931888,9e-05,2]
[347962005,1736250632468,-150.0,9e-05,2]
[347962006,1736250632477,-150.0,9e-05,2]
[347962007,1736250632486,-150.00000001,9e-05,2]
[347962008,1736250632496,-150.00000001,9e-05,2]
[347962009,1736250632505,-150.00000001,9e-05,2]
[347962010,1736250632514,-150.0,9e-05,2]
[347962011,1736250632523,-1500.0,9.002e-05,2]
[347962012,1736250632532,-200.0,9.002e-05,2]
[347962013,1736250632542,-163.4,9.002e-05,2]
[347962014,1736250632551,-1984.21,9.002e-05,2]
[347962015,1736250632560,-163.4,9.002e-05,2]
[347962016,1736250632569,-3391.61,9.033e-05,2]
[347962017,1736250632579,-999.84,9.041e-05,2]
[347962018,1736250632588,-1463.87,9.041e-05,2]
[347962019,1736250632597,-150.0,9.111e-05,2]
[347962020,1736250632607,-150.0,9.136e-05,2]
[347962021,1736250632616,-150.0,9.222e-05,2]
[347962022,1736250632626,-330.8905,9.259e-05,2]
[347962023,1736250632635,-150.0,9.333e-05,2]
[347962024,1736250632645,-150.0,9.336e-05,2]
[347962025,1736250632654,-73068.16,9.359e-05,5]
[347962026,1736250632663,-5980.1711,9.404e-05,2]
[347962027,1736250632672,-150.0,9.436e-05,2]
[347962028,1736250632682,-150.0,9.444e-05,2]
[347962029,1736250632691,-150.0,9.5e-05,2]
[347962030,1736250632701,-500.0,9.502e-05,2]
[347962031,1736250632710,-500.0,9.502e-05,2]
[347962032,1736250632719,-7392.01,9.502e-05,2]
[347962033,1736250632728,-4015.93,9.502e-05,2]
[347962034,1736250632738,-3312.25,9.502e-05,2]
[347962035,1736250632747,-3857.74,9.502e-05,2]
[347962036,1736250632756,-5325.64,9.502e-05,2]
[347962037,1736250632766,-510.81,9.502e-05,2]
[347962038,1736250632775,-500.0,9.502e-05,2]
[347962039,1736250632784,-1639.35,9.502e-05,2]
[347962040,1736250632793,-1135.57,9.502e-05,2]
[347962041,1736250632802,-1796.55,9.503e-05,2]
[347962042,1736250632811,-1113.19,9.503e-05,2]
[347962043,1736250632820,-1106.86,9.503e-05,2]
[347962044,1736250632829,-3216.01,9.503e-05,2]
[347962045,1736250632839,-500.0,9.503e-05,2]
[347962046,1736250632852,-1386.83,9.503e-05,2]
[347962047,1736250632861,-1625.72,9.503e-05,2]
[347962048,1736250632870,-150.0,9.528e-05,2]
[347962049,1736250632880,-150.0,9.556e-05,2]
[347962050,1736250632891,-992.37,9.623e-05,2]
[347962051,1736250632900,-150.0,9.667e-05,2]
[347962052,1736250632919,-800.53100305,9.695e-05,2]
[347962053,1736250632931,-311.4713,9.695e-05,2]
[347962054,1736250632940,-353.166,9.696e-05,2]
[347962055,1736250632951,-150.0,9.709e-05,2]
[347962056,1736250632962,-500.0,9.776e-05,2]
[347962057,1736250632974,-500.0,9.776e-05,2]
[347962058,1736250632984,-7392.01,9.776e-05,2]
[347962059,1736250632993,-4015.93,9.776e-05,2]
[347962060,1736250633003,-3312.25,9.776e-05,2]
[347962061,1736250633150,-3857.74,9.776e-05,2]
[347962062,1736250633160,-5325.64,9.776e-05,2]
[347962063,1736250633170,-510.81,9.776e-05,2]
[347962064,1736250633180,-182.24,9.776e-05,2]
[347962065,1736250633190,-1639.35,9.776e-05,2]
[347962066,1736250633200,-1135.57,9.776e-05,2]
[347962067,1736250633210,-1796.55,9.777e-05,2]
[347962068,1736250633220,-1113.19,9.777e-05,2]
[347962069,1736250633230,-1106.86,9.777e-05,2]
[347962070,1736250633240,-3216.01,9.777e-05,2]
[347962071,1736250633250,-500.0,9.777e-05,2]
[347962072,1736250633260,-1386.83,9.777e-05,2]
[347962073,1736250633269,-1625.72,9.777e-05,2]
[347962074,1736250633279,-150.0,9.778e-05,2]
[347962075,1736250633288,-500.0,9.783e-05,2]
[347962076,1736250633298,-500.0,9.783e-05,2]
[347962077,1736250633308,-500.0,9.783e-05,2]
[347962078,1736250633317,-500.0,9.783e-05,2]
[347962079,1736250633327,-500.0,9.783e-05,2]
[347962080,1736250633337,-584.76,9.783e-05,2]
[347962081,1736250633347,-629.96,9.783e-05,2]
[347962082,1736250633357,-500.0,9.783e-05,2]
[347962083,1736250633366,-500.0,9.783e-05,2]
[347962084,1736250633376,-500.0,9.783e-05,2]
[347962085,1736250633386,-500.0,9.783e-05,2]
[347962086,1736250633395,-500.0,9.783e-05,2]
[347962087,1736250633405,-500.0,9.783e-05,2]
[347962088,1736250633415,-500.0,9.783e-05,2]
[347962089,1736250633424,-500.0,9.783e-05,2]
[347962090,1736250633434,-500.0,9.783e-05,2]
[347962091,1736250633443,-500.0,9.783e-05,2]
[347962092,1736250633453,-500.0,9.783e-05,2]
[347962093,1736250633463,-500.0,9.783e-05,2]
[347962094,1736250633473,-500.0,9.783e-05,2]
[347962095,1736250633483,-500.0,9.783e-05,2]
[347962096,1736250633493,-500.0,9.783e-05,2]
[347962097,1736250633503,-500.0,9.783e-05,2]
[347962098,1736250633513,-500.0,9.783e-05,2]
[347962099,1736250633523,-500.0,9.783e-05,2]
[347962100,1736250633533,-500.0,9.783e-05,2]
[347962101,1736250633542,-500.0,9.783e-05,2]
[347962102,1736250633552,-500.0,9.783e-05,2]
[347962103,1736250633561,-500.0,9.783e-05,2]
[347962104,1736250633571,-500.0,9.783e-05,2]
[347962105,1736250633581,-500.0,9.783e-05,2]
[347962106,1736250633590,-500.0,9.783e-05,2]
[347962107,1736250633600,-500.0,9.783e-05,2]
[347962108,1736250633614,-500.0,9.783e-05,2]
[347962109,1736250633624,-500.0,9.783e-05,2]
[347962110,1736250633634,-500.0,9.783e-05,2]
[347962111,1736250633644,-500.0,9.783e-05,2]
[347962112,1736250633654,-500.0,9.783e-05,2]
[347962113,1736250633664,-500.0,9.783e-05,2]
[347962114,1736250633675,-500.0,9.783e-05,2]
[347962115,1736250633685,-500.0,9.783e-05,2]
[347962116,1736250633696,-500.0,9.783e-05,2]
[347962117,1736250633707,-500.0,9.783e-05,2]
[347962118,1736250633716,-500.0,9.783e-05,2]
[347962119,1736250633726,-500.0,9.783e-05,2]
[347962120,1736250633736,-500.0,9.783e-05,2]
[347962121,1736250633747,-500.0,9.783e-05,2]
[347962122,1736250633757,-500.0,9.783e-05,2]
[347962123,1736250633767,-500.0,9.783e-05,2]
[347962124,1736250633776,-500.0,9.783e-05,2]
[347962125,1736250633786,-511.67,9.783e-05,2]
[347962126,1736250633796,-500.0,9.783e-05,2]
[347962127,1736250633806,-500.0,9.783e-05,2]
[347962128,1736250633816,-500.0,9.783e-05,2]
[347962129,1736250633826,-500.0,9.783e-05,2]
[347962130,1736250633835,-500.0,9.783e-05,2]
[347962131,1736250633849,-500.0,9.783e-05,2]
[347962132,1736250633859,-500.0,9.783e-05,2]
[347962133,1736250633869,-500.0,9.783e-05,2]
[347962134,1736250633878,-500.0,9.783e-05,2]
[347962135,1736250633888,-500.0,9.783e-05,2]
[347962136,1736250633898,-500.0,9.783e-05,2]
[347962137,1736250633911,-500.0,9.783e-05,2]
[347962138,1736250633921,-500.0,9.783e-05,2]
[347962139,1736250633931,-500.0,9.783e-05,2]
[347962140,1736250633941,-500.0,9.783e-05,2]
[347962141,1736250633950,-500.0,9.783e-05,2]
[347962142,1736250634168,-500.0,9.783e-05,2]
[347962143,1736250634179,-500.0,9.783e-05,2]
[347962144,1736250634189,-500.0,9.783e-05,2]
[347962145,1736250634198,-500.0,9.783e-05,2]
[347962146,1736250634207,-500.0,9.783e-05,2]
[347962147,1736250634216,-500.0,9.783e-05,2]
[347962148,1736250634226,-500.0,9.783e-05,2]
[347962149,1736250634235,-500.0,9.783e-05,2]
[347962150,1736250634245,-500.0,9.783e-05,2]
[347962151,1736250634255,-500.0,9.783e-05,2]
[347962152,1736250634267,-500.0,9.783e-05,2]
[347962153,1736250634278,-500.0,9.783e-05,2]
[347962154,1736250634287,-500.0,9.783e-05,2]
[347962155,1736250634296,-500.0,9.783e-05,2]